[Event "Commonwealth CC-Open 2024"]
[Site "Malacca"]
[Date "2024.02.22"]
[Round "5.4"]
[White "Iniyan, Pa"]
[Black "Rohith Krishna S"]
[Result "0-1"]
[ECO "D36"]
[WhiteElo "2515"]
[BlackElo "2410"]
[Annotator "TA"]
[PlyCount "106"]
[EventDate "2024.02.21"]
[EventCountry "MAS"]
[SourceTitle "playchess.com"]
[Source "ChessBase"]
[SourceQuality "1"]
[TimeControl "5400+30"]

{[%evp 37,106,-18,-9,-41,0,0,-13,-41,-40,-125,-110,-102,-132,-135,-55,-167,-151,-147,-149,-146,-95,-82,-95,-111,-117,-78,-46,-67,-28,-54,-53,-45,-52,-43,-54,-48,-47,-59,-28,-81,-36,-55,-8,-190,-188,-242,-238,-243,-263,-752,-745,-676,-624,-624,-405,-405,-405,-358,-264,-269,-267,-370,-376,-371,-291,-483,-489,-574,-462,-457,-452]} 1. d4 {[%emt 0:09:43]} Nf6 {[%emt 0:00:20]} 2. c4 {[%emt 0:00:02]} e6 {[%emt 0:00:06]} 3. Nc3 {[%emt 0:00:01]} d5 {[%emt 0:00:04]} 4. cxd5 {[%emt 0:00:06]} exd5 {[%emt 0:00:05]} 5. Bg5 {[%emt 0:00:03]} Be7 {[%emt 0:01:02]} 6. e3 {[%emt 0:00:18]} c6 {[%emt 0:00:29]} 7. Bd3 {[%emt 0:00:05]} Nbd7 {[%emt 0:00:07]} 8. Qc2 {[%emt 0:00:21]} Nh5 {[%emt 0:00:35]} 9. Bxe7 {[%emt 0:00:19]} Qxe7 {[%emt 0:00:07]} 10. Nge2 {[%emt 0:02:33]} Nb6 {[%emt 0:02:31]} 11. a3 {[%emt 0:02:01] D36: Queen's Gambit Declined: Exchange Variation: Main line (5 Bg5 c6 6 Qc2).} g6 {[%emt 0:07:53]} 12. Qd2 $146 {[%emt 0:06:15]} ({Predecessor:} 12. O-O O-O 13. b4 a6 14. Nc1 Ng7 15. Nb3 Bf5 16. Rfe1 Bxd3 17. Qxd3 f5 18. a4 Ne8 {0-1 Moroni,L (2438)-Parligras,M (2599) EU-ch 17th Gjakova 2016 (7)}) 12... O-O {[%emt 0:13:45]} 13. f3 {[%emt 0:02:52]} Bd7 {[%emt 0:03:18]} 14. g4 {[%emt 0:04:46]} Qh4+ {[%emt 0:09:14]} 15. Kd1 {[%emt 0:01:23]} Ng7 {[%emt 0:00:12]} 16. Kc2 {[%emt 0:00:32]} Rae8 {[%emt 0:02:10]} 17. Nf4 {[%emt 0:04:03]} f5 {[%emt 0:06:47]} 18. h3 {[%emt 0:00:11]} Nc8 {[%emt 0:01:09]} 19. Rae1 {[%emt 0:10:15]} Nd6 {[%emt 0:10:41]} 20. Qh2 {[%emt 0:02:19]} Nf7 {[%emt 0:06:33]} 21. Ng2 {[%emt 0:04:24]} Qe7 {[%emt 0:00:14]} (21... Qf2+ $2 22. Re2 Qxf3 23. Nh4 fxg4 24. Nxf3 $18) 22. Qg3 {[%emt 0:00:10]} b5 {[%emt 0:00:21]} 23. gxf5 {[%emt 0:07:43]} (23. Nf4 $15) 23... Bxf5 $17 {[%emt 0:02:39]} (23... Nxf5 $6 24. Bxf5 Bxf5+ 25. e4 dxe4 26. fxe4 $11) 24. e4 {[%emt 0:00:19]} dxe4 {[%emt 0:00:11]} 25. fxe4 {[%emt 0:01:26]} Be6 {[%emt 0:00:57]} (25... Bd7 $17 {...b4 would now be deadly.} 26. Nf4 b4) 26. Nf4 {[%emt 0:09:09]} ({White should play} 26. d5 $1 $15 Nh5 27. Qh4 Qxh4 28. Nxh4) 26... b4 $19 {[%emt 0:00:51]} 27. Na4 {[%emt 0:00:08]} bxa3 {[%emt 0:04:59]} 28. Nc5 {[%emt 0:00:28]} Qd6 {[%emt 0:00:49]} ({Better is} 28... Rd8 29. Qe3 axb2) 29. Ne2 $17 {[%emt 0:04:48]} axb2 {[%emt 0:04:32]} 30. Qxd6 {[%emt 0:01:00]} Nxd6 {[%emt 0:00:04]} 31. e5 {[%emt 0:02:55]} Ndf5 {[%emt 0:01:38]} 32. Kxb2 {[%emt 0:00:35]} Bd5 {[%emt 0:02:40]} 33. Rhg1 {[%emt 0:02:44]} Rb8+ {[%emt 0:02:09]} 34. Kc3 {[%emt 0:02:17]} Ne6 {[%emt 0:00:30]} 35. Nxe6 {[%emt 0:01:05]} Rb3+ {[%emt 0:00:18]} 36. Kd2 {[%emt 0:00:07]} Bxe6 {[%emt 0:00:05]} 37. Rb1 {[%emt 0:01:08]} Rb6 {[%emt 0:04:09]} 38. Rgc1 {[%emt 0:02:11]} (38. Rxb6 $11 axb6 39. Ra1) 38... Bd5 {[%emt 0:00:48]} 39. Ra1 {[%emt 0:00:05]} (39. Bxf5 Rxf5 40. Rxb6 axb6 $17) 39... Rf7 {[%emt 0:00:50]} (39... Rb2+ $15 40. Bc2 Rfb8) 40. Bxf5 $2 {[%emt 0:04:34]} (40. Rcb1 $11) 40... Rxf5 $19 {[%emt 0:00:40]} 41. Rxa7 {[%emt 0:01:07] [#]} (41. Rcb1 $142) 41... Rf2 $1 $19 {[%emt 0:00:07]} 42. Rc2 {[%emt 0:00:57]} Rb3 {[%emt 0:01:10]} 43. Kc1 $2 {[%emt 0:04:41]} (43. e6 Bxe6 (43... Rxh3 $2 44. Ke1 $19) 44. Re7 Bxh3 (44... Bd5 $2 45. Ra2 $17) 45. Re3 Rxe3 46. Kxe3) 43... Be4 $19 {[%emt 0:01:47]} (43... Rxh3 44. Ra8+ Kg7 45. Nc3 Rh1+ 46. Kb2 $17) 44. Rca2 {[%emt 0:01:28]} Re3 {[%emt 0:04:36]} 45. e6 {[%emt 0:01:57]} Bd5 {[%emt 0:01:14]} ({Stronger than} 45... Rexe2 46. Rxe2 Rxe2 47. Ra8+ Kg7 48. e7 $11) 46. Rf7 {[%emt 0:00:13]} Rxf7 {[%emt 0:00:08]} ({Inferior is} 46... Rfxe2 47. Ra8#) 47. exf7+ {[%emt 0:00:03]} Bxf7 {[%emt 0:00:27]} 48. Rc2 {[%emt 0:01:54]} Be8 {[%emt 0:01:35]} ({Not} 48... Rxh3 49. Rxc6 Rf3 50. Kd2 $17) 49. Nc3 {[%emt 0:01:37]} Rxh3 {[%emt 0:00:10]} 50. Ne4 {[%emt 0:00:06]} Rf3 {[%emt 0:01:12]} 51. Re2 $2 {[%emt 0:00:46]} (51. Kd2 {was called for.}) 51... Bf7 $19 {[%emt 0:00:28]} 52. Nd6 {[%emt 0:00:27]} Rf6 {[%emt 0:00:24]} 53. Ne4 {[%emt 0:00:08]} Rf4 {[%emt 0:00:05]} 0-1

[Event "Commonwealth CC-Open 2024"]
[Site "Malacca"]
[Date "2024.02.22"]
[Round "5.5"]
[White "Tin, Jingyao"]
[Black "Chitlange Sakshi"]
[Result "1-0"]
[ECO "A13"]
[WhiteElo "2563"]
[BlackElo "2210"]
[Annotator "RC"]
[PlyCount "83"]
[EventDate "2024.02.21"]
[EventCountry "MAS"]
[SourceTitle "playchess.com"]
[Source "ChessBase"]
[SourceQuality "1"]
[TimeControl "5400+30"]

1. Nf3 d5 2. g3 c5 3. Bg2 Nf6 4. O-O e6 5. c4 d4 6. e3 Nc6 7. exd4 cxd4 8. d3 h6 9. Re1 Bd6 10. Na3 O-O 11. Nc2 a5 12. a3 e5 13. b3 Re8 14. Rb1 Rb8 15. b4 axb4 16. axb4 b5 17. Nd2 Bg4 18. Bf3 Bxf3 19. Qxf3 Qd7 20. Na3 Na7 21. Ne4 Nxe4 22. Rxe4 f5 23. Re1 Qf7 24. cxb5 Nxb5 25. Nxb5 Rxb5 26. Qc6 Rxb4 27. Bxh6 Reb8 28. Rxb4 Bxb4 29. Rxe5 gxh6 30. Qxh6 Bf8 31. Qg5+ Bg7 32. Rxf5 Rb1+ 33. Kg2 Qb7+ 34. Kh3 Qc8 35. Qg4 Rb6 36. Rf4 Qc1 37. Kg2 Qc6+ 38. Re4 Rb3 39. Qf3 Qb5 40. Re7 Qg5 41. Qf7+ Kh7 {[%emt 1:50:35]} 42. h4 {[%emt 1:33:45]} 1-0

[Event "Commonwealth CC-Open 2024"]
[Site "Malacca"]
[Date "2024.02.22"]
[Round "5.7"]
[White "Vrashank Chouhan"]
[Black "Das, Sayantan"]
[Result "0-1"]
[ECO "D38"]
[WhiteElo "2046"]
[BlackElo "2514"]
[Annotator "RC"]
[PlyCount "42"]
[EventDate "2024.02.21"]
[EventCountry "MAS"]
[SourceTitle "playchess.com"]
[Source "ChessBase"]
[SourceQuality "1"]
[TimeControl "5400+30"]

1. d4 d5 2. c4 e6 3. Nc3 Nf6 4. Nf3 Bb4 5. Qa4+ Nc6 6. a3 Bxc3+ 7. bxc3 Ne4 8. Bf4 O-O 9. h4 Nd6 10. e3 dxc4 11. Bxc4 Bd7 12. Be2 e5 13. dxe5 Nxe5 14. Qd1 Nec4 15. Qd4 Bb5 16. h5 h6 17. Rh3 c5 18. Qxc5 Rc8 19. Qd4 Qa5 20. Nh4 Rfd8 21. Rg3 {[%emt 1:30:55]} Ne8 {[%emt 1:14:50]} 0-1

[Event "Commonwealth CC-Open 2024"]
[Site "Malacca"]
[Date "2024.02.22"]
[Round "5.8"]
[White "Swapnil, S. Dhopade"]
[Black "Mahmood Shah, Mukhriez Shah"]
[Result "1-0"]
[ECO "A52"]
[WhiteElo "2454"]
[BlackElo "2007"]
[Annotator "ChessBase"]
[PlyCount "83"]
[EventDate "2024.02.21"]
[EventCountry "MAS"]
[SourceTitle "playchess.com"]
[Source "ChessBase"]
[SourceQuality "1"]
[TimeControl "5400+30"]

1. d4 Nf6 2. c4 e5 3. dxe5 Ng4 4. Bf4 Nc6 5. Nf3 Bb4+ 6. Nbd2 Qe7 7. e3 Ngxe5 8. Nxe5 Nxe5 9. Be2 O-O 10. O-O Bxd2 11. Qxd2 d6 12. Qc3 Ng6 13. Bg3 Bf5 14. Rfd1 Be4 15. b4 Rfd8 16. a4 Nf8 17. a5 a6 18. Rd4 Bg6 19. Rad1 Ne6 20. R4d2 h5 21. h4 Rab8 22. Rd5 Be4 23. Rxh5 f6 24. Bd3 Qf7 25. Rd5 Bxd5 26. cxd5 Nf8 27. Rc1 Rd7 28. Qd4 Ra8 29. Qg4 Re7 30. h5 Qe8 31. Rc4 Qd7 32. Bf5 Qb5 33. Rd4 Qe8 34. Qf3 Nh7 35. Rh4 Ng5 36. Qg4 Rd8 37. Bf4 c6 38. Bxg5 fxg5 39. Qxg5 cxd5 40. h6 g6 41. Bxg6 Qf8 {[%emt 1:50:28]} 42. Rf4 {[%emt 1:46:27]} 1-0

[Event "Commonwealth CC-Open 2024"]
[Site "Malacca"]
[Date "2024.02.22"]
[Round "5.10"]
[White "Wong, Jianwen"]
[Black "Wong, Zhenyong Jayden"]
[Result "0-1"]
[ECO "A48"]
[WhiteElo "2254"]
[BlackElo "2406"]
[Annotator "RC"]
[PlyCount "105"]
[EventDate "2024.02.21"]
[EventCountry "MAS"]
[SourceTitle "playchess.com"]
[Source "ChessBase"]
[SourceQuality "1"]
[TimeControl "5400+30"]

1. Nf3 g6 2. e3 Bg7 3. Be2 Nf6 4. O-O O-O 5. d4 b6 6. c4 Bb7 7. Re1 e6 8. b4 d5 9. Bb2 dxc4 10. Bxc4 Ne4 11. Qe2 Nd7 12. Nbd2 Nxd2 13. Qxd2 Bxf3 14. gxf3 c5 15. Be2 Qg5+ 16. Kh1 Qh4 17. dxc5 Bxb2 18. Qxb2 bxc5 19. Bb5 Nf6 20. bxc5 Rab8 21. Qe2 Qb4 22. a4 Qxc5 23. Rac1 Qe5 24. Qc4 Qf5 25. Kg2 Qg5+ 26. Kh1 Nd5 27. Rg1 Qf6 28. f4 Rfd8 29. Rgd1 Qh4 30. Qe2 Nf6 31. Kg2 Ne4 32. Bd3 Nd6 33. Rb1 Rxb1 34. Bxb1 Qe7 35. Qf3 Rc8 36. h3 Kg7 37. Rd4 Rc1 38. Bd3 Qc7 39. Kh2 a5 40. Qa8 Rd1 41. Qa6 Nf5 42. Rc4 Qd8 43. Bxf5 exf5 44. Qc6 Qd2 45. Rc2 Qd8 46. Qc3+ Kh6 47. Rc1 Rd3 48. Qc5 Rd2 49. Rc2 Rd5 50. Qc7 Qe8 51. Qc4 Rd1 52. Qc6 Qd8 {[%emt 1:45:25]} 53. Qc4 {[%emt 1:57:00]} 0-1

[Event "Commonwealth CC-Open 2024"]
[Site "Malacca"]
[Date "2024.02.22"]
[Round "5.13"]
[White "Liu, Yi"]
[Black "Sanudula, K M Dahamdi"]
[Result "1-0"]
[ECO "D00"]
[WhiteElo "2260"]
[BlackElo "1744"]
[Annotator "RC"]
[PlyCount "49"]
[EventDate "2024.02.21"]
[EventCountry "MAS"]
[SourceTitle "playchess.com"]
[Source "ChessBase"]
[SourceQuality "1"]
[TimeControl "5400+30"]

1. d4 Nf6 2. Nc3 d5 3. Bf4 e6 4. Nb5 Na6 5. e3 c6 6. Nc3 Nc7 7. Nf3 Bd6 8. h4 Qe7 9. h5 h6 10. Ne5 Nd7 11. Qg4 Bxe5 12. dxe5 f6 13. exf6 Nxf6 14. Qg6+ Kd8 15. Be5 Bd7 16. Qg3 Be8 17. Be2 Rc8 18. O-O-O Rg8 19. e4 Nd7 20. Bd6 Qg5+ 21. Qxg5+ hxg5 22. Rd3 Nf6 23. e5 Nh7 24. Rg3 g6 {[%emt 0:16:53]} 25. Bd3 {[%emt 0:24:29]} 1-0

[Event "Commonwealth CC-Open 2024"]
[Site "Malacca"]
[Date "2024.02.22"]
[Round "5.15"]
[White "Kavin Mohan"]
[Black "Visakh N R"]
[Result "0-1"]
[ECO "E43"]
[WhiteElo "1803"]
[BlackElo "2549"]
[Annotator "RC"]
[PlyCount "78"]
[EventDate "2024.02.21"]
[EventCountry "MAS"]
[SourceTitle "playchess.com"]
[Source "ChessBase"]
[SourceQuality "1"]
[TimeControl "5400+30"]

1. d4 Nf6 2. c4 e6 3. Nc3 Bb4 4. e3 b6 5. Bd3 Bb7 6. Nf3 Ne4 7. Qc2 f5 8. O-O Bxc3 9. bxc3 O-O 10. Nd2 Qh4 11. Nxe4 fxe4 12. Be2 Rf6 13. Qd1 Nc6 14. Ba3 d6 15. h3 Raf8 16. Qe1 Qg5 17. Kh2 Rg6 18. g3 Ba6 19. Bc1 Rgf6 20. Kg2 Na5 21. f4 exf3+ 22. Rxf3 Qg6 23. Rxf6 Rxf6 24. Bf3 Qc2+ 25. Qd2 Qf5 26. Qd1 Bb7 27. d5 Nxc4 28. e4 Qg6 29. Qe2 exd5 30. exd5 Rxf3 31. Kxf3 Ne5+ 32. Kf2 Qf7+ 33. Ke1 Qxd5 34. c4 Qd4 35. Bb2 Qxb2 36. Qxb2 Nd3+ 37. Kd2 Nxb2 38. Kc3 Na4+ 39. Kb4 {[%emt 1:09:23]} Nc5 {[%emt 1:09:57]} 0-1

[Event "Commonwealth CC-Open 2024"]
[Site "Malacca"]
[Date "2024.02.22"]
[Round "5.16"]
[White "Masli, Muhd Nur Daie"]
[Black "Srija, Seshadri"]
[Result "1-0"]
[ECO "C77"]
[WhiteElo "1867"]
[BlackElo "2291"]
[Annotator "RC"]
[PlyCount "99"]
[EventDate "2024.02.21"]
[EventCountry "MAS"]
[SourceTitle "playchess.com"]
[Source "ChessBase"]
[SourceQuality "1"]
[TimeControl "5400+30"]

1. e4 e5 2. Nf3 Nc6 3. Bb5 a6 4. Ba4 Nf6 5. Qe2 b5 6. Bb3 Bc5 7. O-O O-O 8. c3 Re8 9. d3 h6 10. Rd1 d5 11. h3 Bf8 12. Nbd2 Na5 13. Bc2 c5 14. Nf1 Nc6 15. Ng3 Ra7 16. Be3 d4 17. Bc1 Qd6 18. a3 a5 19. a4 b4 20. cxd4 cxd4 21. Bb3 g5 22. Bd2 Bg7 23. Rdc1 Ne7 24. Rc2 Ng6 25. Rac1 Bd7 26. Nh2 Qa6 27. Ng4 Nf4 28. Bxf4 exf4 29. Nxf6+ Bxf6 30. Qh5 Rf8 31. Qg6+ Bg7 32. Rc6 Qxc6 33. Rxc6 Kh8 34. Qd6 Bxc6 35. Nf5 Ra6 36. Nxg7 Kxg7 37. Qxd4+ Kg8 38. Bc4 Raa8 39. Qf6 Bxa4 40. Qg6+ Kh8 41. Qxh6+ Kg8 42. Qxg5+ Kh7 43. Qf5+ Kg7 44. e5 Be8 45. Qf6+ Kg8 46. Bd5 Ra7 47. Be4 a4 48. Qg5+ Kh8 49. Qh6+ Kg8 {[%emt 1:27:01]} 50. Qh7# {[%emt 1:18:52]} 1-0

[Event "Commonwealth CC-Open 2024"]
[Site "Malacca"]
[Date "2024.02.22"]
[Round "5.18"]
[White "Aminuddin, Muhd Faqih"]
[Black "Pon, Matt"]
[Result "0-1"]
[ECO "E62"]
[WhiteElo "1753"]
[BlackElo "2202"]
[Annotator "RC"]
[PlyCount "120"]
[EventDate "2024.02.21"]
[EventCountry "MAS"]
[SourceTitle "playchess.com"]
[Source "ChessBase"]
[SourceQuality "1"]
[TimeControl "5400+30"]

1. Nf3 Nf6 2. c4 g6 3. g3 Bg7 4. Bg2 O-O 5. Nc3 d6 6. d4 c6 7. O-O Qa5 8. h3 e5 9. d5 cxd5 10. cxd5 Nbd7 11. Nd2 a6 12. Nc4 Qc7 13. Ne3 b5 14. a4 b4 15. Na2 a5 16. Bd2 Ba6 17. Rc1 Nc5 18. Nc4 Bxc4 19. Rxc4 Nfd7 20. Be3 Qd8 21. Bxc5 Nxc5 22. Nc1 e4 23. b3 Qe7 24. e3 Qe5 25. Re1 Rfe8 26. Re2 Qh5 27. Qc2 Qxd5 28. Rd2 Qe6 29. Ne2 f5 30. Nf4 Qe7 31. Bf1 Be5 32. Nd5 Qb7 33. Rxc5 dxc5 34. Qxc5 Qa7 35. Nb6 Rab8 36. Bc4+ Kh8 37. Bb5 Re6 38. Nd7 Qxc5 39. Nxc5 Rd6 40. Rxd6 Bxd6 41. Ne6 Rc8 42. Nd4 Rc3 43. Bc4 Be5 44. Nb5 Rc1+ 45. Kg2 Rxc4 46. bxc4 b3 47. c5 Kg8 48. Kf1 Kf7 49. Ke2 Ke6 50. c6 b2 51. Na3 Kd5 52. Kd1 Kxc6 53. Kc2 Kc5 54. Kb3 g5 55. Nb1 h5 56. Nd2 h4 57. gxh4 gxh4 58. Kc2 Kb4 59. f3 Bc3 60. Nb1 {[%emt 1:55:03]} exf3 {[%emt 1:44:35]} 0-1

[Event "Commonwealth CC-Open 2024"]
[Site "Malacca"]
[Date "2024.02.22"]
[Round "5.19"]
[White "Kapoor, Satvik"]
[Black "Muhammed, Shuaau"]
[Result "1/2-1/2"]
[ECO "E67"]
[WhiteElo "1791"]
[BlackElo "2093"]
[Annotator "NA RC"]
[PlyCount "63"]
[EventDate "2024.02.21"]
[EventCountry "MAS"]
[SourceTitle "playchess.com"]
[Source "ChessBase"]
[SourceQuality "1"]
[TimeControl "5400+30"]

1. Nf3 Nf6 2. g3 g6 3. Bg2 Bg7 4. O-O {[%emt 0:00:02]} O-O {[%emt 0:07:47]} 5. d4 {[%emt 0:00:32]} d6 {[%emt 0:08:58]} 6. c4 {[%emt 0:00:39]} Nbd7 {[%emt 0:10:20]} 7. Nc3 {[%emt 0:01:41]} e5 {[%emt 0:11:03]} 8. Qc2 {[%emt 0:03:55]} Re8 {[%emt 0:13:15]} 9. Rd1 {[%emt 0:04:33]} exd4 {[%emt 0:19:53]} 10. Nxd4 {[%emt 0:04:34]} h6 {[%emt 0:29:42] E67: King's Indian: Fianchetto: 6...Nbd7.} 11. b3 {[%emt 0:06:08]} Rb8 {[%emt 0:35:20]} 12. Bb2 {[%emt 0:08:58]} a6 {[%emt 0:39:27]} 13. Rac1 {[%emt 0:10:46]} (13. Rab1 $14 {is more appropriate.}) 13... c6 {[%emt 0:48:48]} 14. Nf3 {[%emt 0:12:01]} Qc7 {[%emt 0:49:52]} 15. Ba3 {[%emt 0:12:48]} Nc5 {[%emt 0:51:36]} 16. Qd2 {[%emt 0:15:13]} b5 {[%emt 0:56:05]} 17. cxb5 {[%emt 0:18:02]} axb5 {[%emt 0:56:36]} 18. Bb4 {[%emt 0:24:22]} ({But not} 18. Qxd6 Qxd6 19. Rxd6 b4 20. Bxb4 (20. Rxc6 Ne6 $17) 20... Rxb4 21. Rxc6 Ne6 $17) 18... Nfe4 {[%emt 1:03:55]} 19. Nxe4 {[%emt 0:25:12]} Nxe4 {[%emt 1:03:57]} 20. Bxd6 {[%emt 0:25:46]} Nxd6 {[%emt 1:10:52]} 21. Qxd6 {[%emt 0:26:06]} Qxd6 {[%emt 1:12:18]} 22. Rxd6 {[%emt 0:26:10]} Bf5 {[%emt 1:14:48] [#]} (22... Rxe2 $11 {keeps the balance.} 23. Rd8+ (23. Rdxc6 Bf5 $11 24. Nh4 Be6 $11) (23. Rcxc6 Bf5 $11) 23... Kh7) 23. Rd2 {[%emt 0:32:36]} (23. Nh4 $1 $16 Bg4 24. e3 (24. Rcxc6 g5 $16) (24. Bxc6 Rxe2 25. a4 bxa4 $11)) 23... b4 $11 {[%emt 1:19:02]} 24. Nd4 Bxd4 25. Rxd4 Rxe2 26. Bxc6 Rxa2 27. Kg2 Rb2 28. Bd5 Bc2 29. Rf4 Bxb3 30. Bxb3 Rxb3 31. Rc7 {[%emt 0:45:27]} Rf8 {[%emt 1:35:18]} 32. Rb7 {[%emt 0:45:57]} 1/2-1/2

[Event "Commonwealth CC-Open 2024"]
[Site "Malacca"]
[Date "2024.02.22"]
[Round "5.20"]
[White "Chong, Jin Cheng"]
[Black "Bhagyashree Patil"]
[Result "1-0"]
[ECO "C50"]
[WhiteElo "1706"]
[BlackElo "1885"]
[Annotator "NA"]
[PlyCount "89"]
[EventDate "2024.02.21"]
[EventCountry "MAS"]
[SourceTitle "playchess.com"]
[Source "ChessBase"]
[SourceQuality "1"]
[TimeControl "5400+30"]

1. e4 e5 2. Nf3 Nc6 3. Bc4 Be7 4. O-O d6 5. d4 exd4 6. Nxd4 Nf6 7. Nc3 O-O 8. h3 Nd7 9. Re1 {[%emt 0:08:39]} Nde5 {[%emt 0:08:39]} 10. Nxc6 {[%emt 0:20:46]} bxc6 {[%emt 0:09:02]} 11. Bf1 {[%emt 0:24:55]} Bf6 {[%emt 0:13:42]} 12. f4 {[%emt 0:26:56]} Ng6 {[%emt 0:15:43]} 13. Qf3 {[%emt 0:28:36]} Rb8 {[%emt 0:18:18]} 14. Bc4 {[%emt 0:31:32]} Bd4+ {[%emt 0:29:44]} 15. Kh1 {[%emt 0:37:27]} Qf6 {[%emt 0:34:44]} 16. Bb3 {[%emt 0:39:30]} Re8 {[%emt 0:46:49]} 17. Bd2 {[%emt 0:47:40]} Bb7 $11 {[%emt 0:57:24]} 18. e5 Qh4 19. Ne4 dxe5 20. c3 Bb6 21. Ng5 Nh8 22. fxe5 c5 23. Bxf7+ Nxf7 24. Qxf7+ Kh8 25. Qf4 Qh5 26. Kh2 Rf8 27. Qg3 c4 28. Ne6 Rf7 29. Rf1 Re7 30. Nf4 Qxe5 31. Rae1 Be4 32. Rxe4 Qxe4 33. Re1 Rd8 34. Rxe4 Rxe4 35. Qh4 Rde8 36. Qh5 c6 37. b3 Bc7 38. h4 Rd8 39. Qf3 Re7 40. Bc1 Re1 41. Be3 Bb8 42. g3 cxb3 43. axb3 Re8 44. Bd4 R1e7 {[%emt 1:52:30]} 45. Qxc6 {[%emt 1:41:53]} 1-0

[Event "Commonwealth CC-Open 2024"]
[Site "Malacca"]
[Date "2024.02.22"]
[Round "5.21"]
[White "Gomes, Mary Ann"]
[Black "AH KYE, Benitot"]
[Result "1-0"]
[ECO "A13"]
[WhiteElo "2332"]
[BlackElo "1708"]
[Annotator "RC"]
[PlyCount "51"]
[EventDate "2024.02.21"]
[EventCountry "MAS"]
[SourceTitle "playchess.com"]
[Source "ChessBase"]
[SourceQuality "1"]
[TimeControl "5400+30"]

1. Nf3 d5 2. g3 Nf6 3. Bg2 e6 4. b3 Be7 5. Bb2 O-O 6. c4 Nc6 7. O-O d4 8. d3 e5 9. Na3 h6 10. Nc2 a5 11. e3 Bc5 12. h3 Be6 13. Nxe5 Nxe5 14. exd4 Nxd3 15. Qxd3 Qd7 16. Ne3 Rad8 17. Rad1 Bxh3 18. dxc5 Qxd3 19. Rxd3 Rxd3 20. Bxh3 Rd2 21. Be5 Rxa2 22. Bxc7 Ne4 23. Bg2 Rc8 24. Nd5 Re8 25. Bxe4 Rxe4 {[%emt 0:34:32]} 26. Nc3 {[%emt 0:24:15]} 1-0

[Event "Commonwealth CC-Open 2024"]
[Site "Malacca"]
[Date "2024.02.22"]
[Round "5.22"]
[White "Gong, Qianyun"]
[Black "Hiew, Jing Yung"]
[Result "1-0"]
[ECO "B51"]
[WhiteElo "2263"]
[BlackElo "1635"]
[Annotator "RC"]
[PlyCount "99"]
[EventDate "2024.02.21"]
[EventCountry "MAS"]
[SourceTitle "playchess.com"]
[Source "ChessBase"]
[SourceQuality "1"]
[TimeControl "5400+30"]

1. e4 c5 2. Nf3 Nc6 3. Bc4 e6 4. O-O Nf6 5. Re1 d6 6. Bb5 Bd7 7. c3 a6 8. Bf1 e5 9. d3 Be7 10. Na3 O-O 11. Nc2 Re8 12. h3 h6 13. d4 Bf8 14. dxc5 dxc5 15. Nh4 g6 16. Qf3 Nh5 17. Nf5 Kh7 18. Rd1 Nf6 19. Ng3 Qe7 20. Ne3 Be6 21. Nd5 Bxd5 22. exd5 Na7 23. d6 Qe6 24. Qxb7 Reb8 25. Qf3 Bxd6 26. Bc4 Qe7 27. Qe3 Ng8 28. Bd5 Nc8 29. Bxa8 Rxa8 30. Ne4 c4 31. Nxd6 Nxd6 32. Qc5 Rd8 33. Be3 Nf6 34. Qb6 Nfe4 35. f3 Ng3 36. Bc5 Ngf5 37. Bxd6 Rxd6 38. Rxd6 Nxd6 39. Qxa6 e4 40. fxe4 Nxe4 41. Qb6 Nc5 42. Rf1 f5 43. b4 Qe3+ 44. Kh1 Qe2 45. Qc7+ Kh8 46. Qf4 Ne4 47. Qxh6+ Kg8 48. Qxg6+ Kh8 49. Rxf5 Nf6 {[%emt 1:55:00]} 50. Qxf6+ {[%emt 1:48:30]} 1-0

[Event "Commonwealth CC-Open 2024"]
[Site "Malacca"]
[Date "2024.02.22"]
[Round "5.23"]
[White "Anderson, Gavin"]
[Black "Jayaweera, Sayuni Gihansa"]
[Result "1-0"]
[ECO "D87"]
[WhiteElo "2159"]
[BlackElo "1632"]
[Annotator "RC"]
[PlyCount "69"]
[EventDate "2024.02.21"]
[EventCountry "MAS"]
[SourceTitle "playchess.com"]
[Source "ChessBase"]
[SourceQuality "1"]
[TimeControl "5400+30"]

1. d4 Nf6 2. c4 g6 3. Nc3 d5 4. cxd5 Nxd5 5. e4 Nxc3 6. bxc3 Bg7 7. Bc4 O-O 8. Ne2 c5 9. O-O Qa5 10. Be3 Nc6 11. Rb1 a6 12. f4 cxd4 13. cxd4 b5 14. Bb3 Bg4 15. d5 Nd4 16. Bxd4 Bxe2 17. Qxe2 Bxd4+ 18. Kh1 Rac8 19. e5 Qc3 20. Rf3 Qc5 21. f5 Kg7 22. Rbf1 f6 23. fxg6 hxg6 24. exf6+ Rxf6 25. Rxf6 Bxf6 26. Qe6 Qc1 27. Rd1 a5 28. d6 Qc6 29. Qf7+ Kh6 30. dxe7 Re8 31. Bd5 Qc2 32. Rf1 Qd3 33. Qxf6 Qxd5 34. Qf8+ Rxf8 {[%emt 1:41:50]} 35. exf8=Q+ {[%emt 1:48:00]} 1-0

[Event "Commonwealth CC-Open 2024"]
[Site "Malacca"]
[Date "2024.02.22"]
[Round "5.24"]
[White "Smith, Robert W"]
[Black "De Maupeou D`ableiges, Alexandre"]
[Result "1-0"]
[ECO "C63"]
[WhiteElo "2152"]
[BlackElo "1609"]
[Annotator "RC"]
[PlyCount "107"]
[EventDate "2024.02.21"]
[EventCountry "MAS"]
[SourceTitle "playchess.com"]
[Source "ChessBase"]
[SourceQuality "1"]
[TimeControl "5400+30"]

1. e4 e5 2. Nf3 Nc6 3. Bb5 f5 4. Nc3 fxe4 5. Nxe4 Nf6 6. Qe2 d5 7. Nxf6+ gxf6 8. d4 e4 9. Nd2 Bg7 10. Qh5+ Kf8 11. c3 Be6 12. f3 Bf7 13. Qh3 Bg6 14. O-O a6 15. Bxc6 bxc6 16. fxe4 dxe4 17. Nb3 Kf7 18. Nc5 Re8 19. Bh6 Qe7 20. Rae1 Kg8 21. Bxg7 Qxg7 22. Qh4 Rab8 23. b3 f5 24. Re3 Qe7 25. Qf4 Qd6 26. Nxa6 Rb6 27. Nc5 Rb5 28. b4 Qd5 29. a4 Rbb8 30. Qxc7 Rbc8 31. Qf4 Re7 32. a5 Kh8 33. h4 Rg7 34. Qe5 Qg8 35. Ne6 Re8 36. Qxg7+ Qxg7 37. Nxg7 Kxg7 38. h5 Kf6 39. hxg6 hxg6 40. a6 Kg5 41. g3 Kg4 42. a7 c5 43. bxc5 g5 44. Ra1 Ra8 45. c6 f4 46. gxf4 gxf4 47. Rxe4 Kf3 48. Re8 Rxe8 49. a8=Q Re2 50. c7+ Kg3 51. Qg8+ Kf3 52. Rf1+ Ke3 53. Qe6+ Kd2 {[%emt 1:43:25]} 54. Qxe2+ {[%emt 1:30:24]} 1-0

[Event "Commonwealth CC-Open 2024"]
[Site "Malacca"]
[Date "2024.02.22"]
[Round "5.25"]
[White "Wijesuriya, G P Y"]
[Black "Khandhar, Kaushal"]
[Result "1-0"]
[ECO "C07"]
[WhiteElo "1616"]
[BlackElo "1840"]
[Annotator "NA RC"]
[PlyCount "59"]
[EventDate "2024.02.21"]
[EventCountry "MAS"]
[SourceTitle "playchess.com"]
[Source "ChessBase"]
[SourceQuality "1"]
[TimeControl "5400+30"]

1. e4 e6 2. d4 d5 3. Nd2 c5 4. exd5 Qxd5 5. dxc5 Bxc5 6. Ngf3 Nf6 7. Bc4 Qc6 {C07: French Tarrasch: 3...c5, 4 Ngf3 and 4 exd5 Qxd5.} 8. Qe2 a6 9. O-O Nbd7 10. Nb3 b5 11. Bd3 Bb7 12. Na5 Qc7 13. Nxb7 Qxb7 14. Bf4 O-O 15. Ng5 Rfe8 {[%emt 0:12:49]} 16. Ne4 {[%emt 0:25:42]} e5 {[%emt 0:13:19]} 17. Bg5 {[%emt 0:26:45]} Nd5 {[%emt 0:16:12]} 18. Qf3 {[%emt 0:37:43]} Rab8 {[%emt 0:21:41]} 19. c3 {[%emt 0:48:06]} f6 {[%emt 0:21:42]} 20. Bd2 {[%emt 0:50:29]} Bf8 {[%emt 0:25:48]} 21. Bc2 {[%emt 0:50:32]} N7b6 {[%emt 0:28:53]} 22. Rad1 {[%emt 1:02:10]} Rbd8 {[%emt 0:28:57]} 23. Be3 {[%emt 1:10:23]} Kh8 {[%emt 0:29:01]} 24. Bxb6 {[%emt 1:13:25]} Nxb6 {[%emt 0:30:17]} 25. Qh3 {[%emt 1:17:06]} Qc8 $18 {[%emt 0:30:33]} 26. Qh4 Rxd1 27. Rxd1 Qf5 28. Bb1 Qf4 29. Qh3 Rd8 {[%emt 0:44:26]} 30. Nd6 {[%emt 1:33:40]} 1-0